bitfinex/quotes_SOLUSD_20250207
["timestamp","ask_amount","ask_price","bid_price","bid_amount"]
[1738907471190,0.0001,192.92,192.91,29.18711772]
[1738907472384,0.0001,192.92,192.91,29.96445542]
[1738907475487,0.0001,192.92,192.91,144.96445542]
[1738907475686,0.0001,192.92,192.91,144.18711772]
[1738907478095,0.0001,192.92,192.91,133.59554853]
[1738907479791,0.0001,192.92,192.91,5.1837]
[1738907479985,10.34068919,192.92,192.85,18.44254119]
[1738907480192,10.34058919,192.91,192.86,5.1848]
[1738907480582,10.34068919,192.92,192.86,5.1848]
[1738907483298,0.0001,192.92,192.86,5.1848]
[1738907483793,0.0001,192.92,192.86,15.52538919]
[1738907485390,0.0001,192.92,192.87,10.34058919]
[1738907486492,0.0001,192.92,192.88,5.1845]
[1738907497599,0.0001,192.92,192.88,5.2475]
[1738907498008,0.0001,192.92,192.88,15.58808919]
[1738907498388,0.0001,192.92,192.88,5.2475]
[1738907500010,0.0001,192.92,192.88,0.063]
[1738907500221,10.34058919,192.9,192.88,0.063]
[1738907500399,10.34058919,192.89,192.88,0.063]
[1738907503330,10.34058919,192.9,192.88,0.063]
[1738907503622,20.0,192.9,192.88,0.063]
[1738907503797,30.34058919,192.9,192.88,0.063]
[1738907504114,20.0,192.9,192.88,0.063]
[1738907505205,30.34058919,192.9,192.88,0.063]
[1738907505402,10.34058919,192.89,192.88,0.063]
[1738907505999,30.34058919,192.9,192.88,0.063]
[1738907508215,10.34058919,192.89,192.88,0.063]
[1738907508725,15.52488919,192.89,192.88,0.063]
[1738907516742,15.65037919,192.89,192.88,0.063]
[1738907517039,15.65037919,192.89,192.86,0.063]
[1738907517248,10.46607919,192.87,192.86,0.063]
[1738907519147,15.65087919,192.87,192.86,0.063]
[1738907522858,20.0,192.82,192.77,0.063]
[1738907523158,21.74609,192.78,192.77,0.063]
[1738907523334,20.0,192.77,192.75,0.063]
[1738907523656,0.3804854,192.76,192.75,0.063]
[1738907524146,10.34058919,192.76,192.75,0.063]
[1738907527135,1.6206,192.78,192.75,0.063]
[1738907527136,10.34058919,192.78,192.75,0.063]
[1738907527336,10.34058919,192.79,192.75,0.063]
[1738907527854,10.34058919,192.78,192.75,0.063]
[1738907528229,10.34058919,192.77,192.75,0.063]
[1738907528429,10.34058919,192.76,192.75,0.063]
[1738907529650,15.52828919,192.76,192.75,0.063]
[1738907532772,15.3914087,192.76,192.75,0.063]
[1738907536958,15.5168987,192.76,192.75,0.063]
[1738907537138,15.8973841,192.76,192.75,0.063]
[1738907537660,15.8973841,192.76,192.73,0.063]
[1738907537661,20.12549,192.74,192.73,0.063]
[1738907537847,30.84656459,192.74,192.73,0.063]
[1738907539166,36.03486459,192.74,192.73,0.063]
[1738907543868,36.03486459,192.74,192.68,0.063]
[1738907543869,0.12549,192.69,192.68,0.063]
[1738907544166,10.84656459,192.69,192.68,0.063]
[1738907544551,10.84656459,192.69,192.67,0.063]
[1738907544753,30.34058919,192.68,192.67,0.063]
[1738907546657,35.53048919,192.68,192.67,0.063]
[1738907547268,36.82364772,192.68,192.67,0.063]
[1738907547466,36.94913772,192.68,192.67,0.063]
[1738907548081,37.94913772,192.68,192.66,0.063]
[1738907548287,10.72107459,192.67,192.66,0.063]
[1738907548486,41.97205459,192.67,192.66,0.063]
[1738907548699,43.54175459,192.67,192.66,0.063]
[1738907548896,48.73195459,192.67,192.66,0.063]
[1738907549993,20.12549,192.63,192.55,0.063]
[1738907550188,103.20892135,192.63,192.55,0.063]
[1738907550394,10.34058919,192.56,192.55,0.063]
[1738907551704,67.93928113,192.63,192.55,0.063]
[1738907551705,10.34058919,192.59,192.55,0.063]
[1738907551991,20.0,192.56,192.55,0.063]
[1738907552672,10.34058919,192.57,192.55,0.063]
[1738907556456,10.34058919,192.56,192.55,0.063]
[1738907557476,30.34058919,192.56,192.55,0.063]
[1738907558574,35.53368919,192.56,192.55,0.063]
[1738907558881,15.53368919,192.56,192.55,0.063]
[1738907559264,10.34058919,192.56,192.55,0.063]
[1738907559880,30.34058919,192.56,192.55,0.063]
[1738907560561,15.91417459,192.56,192.55,0.063]
[1738907564099,16.03966459,192.56,192.55,0.063]
[1738907567990,10.34058919,192.56,192.55,0.063]
[1738907569482,15.53368919,192.56,192.55,0.063]
[1738907573693,15.65917919,192.56,192.55,0.063]
[1738907574673,15.53368919,192.56,192.55,0.063]
[1738907584586,15.65917919,192.56,192.55,0.063]
[1738907594520,10.34058919,192.56,192.55,0.063]
[1738907595403,15.65917919,192.56,192.55,0.063]
[1738907597419,15.53368919,192.56,192.55,0.063]
[1738907598624,10.34058919,192.56,192.55,0.063]
[1738907600304,10.72107459,192.56,192.55,0.063]
[1738907600620,15.91417459,192.56,192.55,0.063]
[1738907601025,16.03966459,192.56,192.55,0.063]
[1738907607434,15.53368919,192.56,192.55,0.063]
[1738907609235,27.84895912,192.57,192.55,0.063]
[1738907610539,17.50836993,192.57,192.55,0.063]
[1738907611363,27.84895912,192.57,192.55,0.063]
[1738907612347,10.34058919,192.56,192.55,0.063]
[1738907613645,27.84895912,192.57,192.55,0.063]
[1738907614826,17.50836993,192.57,192.55,0.063]
[1738907616660,17.50836993,192.57,192.55,10.40358919]
[1738907617643,17.50836993,192.57,192.56,10.34058919]
[1738907618732,17.50836993,192.57,192.56,15.53368919]
[1738907619644,17.50836993,192.57,192.56,28.94553772]
[1738907625040,17.50836993,192.57,192.56,29.19651772]
[1738907625252,6.993e-05,192.57,192.56,29.19651772]
[1738907625440,0.03,192.62,192.57,0.25098]
[1738907625653,0.03,192.62,192.58,10.34058919]
[1738907625942,0.03,192.62,192.57,10.34058919]
[1738907627460,0.03,192.62,192.58,5.1926]
[1738907627758,0.03,192.62,192.58,15.53318919]
[1738907628958,0.03,192.62,192.59,10.34058919]
[1738907630362,0.03,192.62,192.6,5.1921]
[1738907631760,0.03,192.62,192.61,24.00341772]
[1738907633163,0.03,192.62,192.61,29.19521772]
[1738907634169,0.03,192.62,192.59,120.1921]
[1738907635967,0.03,192.62,192.57,10.34058919]
[1738907636263,0.03,192.62,192.58,5.1926]
[1738907636764,0.03,192.62,192.59,10.34058919]
[1738907637162,0.03,192.62,192.58,10.34058919]
[1738907638067,0.03,192.62,192.59,23.75243772]
[1738907638262,0.03,192.62,192.6,10.34058919]
[1738907638465,0.03,192.62,192.59,23.75243772]
[1738907639182,0.03,192.62,192.6,5.1921]
[1738907641071,0.03,192.62,192.6,15.53268919]
[1738907644182,0.03,192.62,192.61,23.75243772]
[1738907644389,0.03,192.62,192.61,24.00341772]
[1738907645868,0.03,192.62,192.61,29.19521772]
[1738907646961,10.34058919,192.73,192.61,42.17471772]
[1738907647189,10.34058919,192.73,192.65,10.34058919]
[1738907647491,7.989e-05,192.74,192.73,0.12549]
[1738907647673,0.0001,192.75,192.73,129.69175461]
[1738907647858,1.5925,192.86,192.77,13.66282853]
[1738907648058,1.5925,192.86,192.8,10.34058919]
[1738907648274,20.0,192.84,192.8,10.34058919]
[1738907648672,20.0,192.84,192.77,138.75243772]
[1738907648893,10.34058919,192.8,192.74,5.1881]
[1738907649964,10.34058919,192.78,192.72,5.1886]
[1738907650281,10.34058919,192.76,192.68,10.34058919]
[1738907650474,10.34058919,192.75,192.68,10.34058919]
[1738907650672,16.17743707,192.75,192.68,29.5892856]
[1738907651474,16.17743707,192.75,192.69,5.1896]
[1738907651674,36.17743707,192.76,192.69,21.36703707]
[1738907652192,20.0,192.76,192.7,16.17743707]
[1738907652781,20.0,192.76,192.71,16.17743707]
[1738907653478,20.0,192.76,192.7,21.36673707]
[1738907654173,36.17743707,192.76,192.7,5.1893]
[1738907654381,20.0,192.76,192.7,21.36673707]
[1738907655287,20.0,192.76,192.71,16.17743707]
[1738907655489,20.0,192.76,192.71,21.36633707]
[1738907655685,20.0,192.76,192.71,5.1889]
[1738907659108,20.0,192.76,192.71,21.36633707]
[1738907659316,20.0,192.76,192.72,16.17743707]
[1738907659601,20.03,192.76,192.73,16.17743707]
[1738907659974,20.03,192.76,192.7,16.17743707]
[1738907660772,20.03,192.76,192.71,16.17743707]
[1738907661194,0.03,192.76,192.69,21.36703707]
[1738907662093,1.6342,192.75,192.69,21.36703707]
[1738907665771,1.6342,192.75,192.7,16.17743707]
[1738907665978,0.03,192.76,192.73,16.17743707]
[1738907666676,20.03,192.76,192.72,16.17743707]
[1738907667803,20.03,192.76,192.72,21.36613707]
[1738907668195,0.03,192.76,192.72,5.1887]
[1738907668388,16.20743707,192.76,192.7,5.1891]
[1738907669493,16.20743707,192.76,192.7,21.36653707]
[1738907669702,0.03,192.76,192.7,16.17743707]
[1738907671502,0.03,192.76,192.71,5.1891]
[1738907672634,0.03,192.76,192.7,0.063]
[1738907673598,0.03,192.76,192.7,10.41457997]
[1738907673899,0.03,192.76,192.71,5.1891]
[1738907675096,0.03,192.76,192.71,15.54067997]
[1738907675314,20.03,192.76,192.73,10.35157997]
[1738907675788,0.03,192.76,192.73,10.35157997]
[1738907677098,0.03,192.76,192.74,10.35157997]
[1738907678291,0.03,192.76,192.75,5.188]
[1738907680605,0.03,192.76,192.75,15.53957997]
[1738907683706,0.03,192.76,192.75,29.2024085]
[1738907692125,0.03,192.76,192.75,28.9514285]
[1738907696516,0.03,192.76,192.75,29.2024085]
[1738907697019,0.0001,192.76,192.75,144.4533885]
[1738907697216,0.0001,192.76,192.75,145.4533885]
[1738907697803,0.0001,192.76,192.75,144.4533885]
[1738907698621,0.0001,192.76,192.75,145.4533885]
[1738907699233,0.0001,192.76,192.75,144.4533885]
[1738907700113,0.0001,192.76,192.75,145.4533885]
[1738907700313,0.0001,192.76,192.75,146.75020456]
[1738907701320,0.0001,192.76,192.75,226.21320456]
[1738907701714,0.03,192.82,192.78,10.35157997]
[1738907701915,0.03,192.82,192.78,125.35157997]
[1738907702727,0.03,192.82,192.79,5.1869]
[1738907702913,0.03,192.82,192.79,15.53847997]
[1738907704508,0.03,192.82,192.79,130.53847997]
[1738907704714,0.03,192.82,192.81,24.0144085]
[1738907706238,27.49496547,192.92,192.82,13.66282853]
[1738907706418,27.49496547,192.92,192.87,10.35157997]
[1738907706609,6.6625,192.92,192.87,10.35157997]
[1738907706811,6.6625,192.92,192.86,10.35157997]
[1738907707331,6.6625,192.92,192.87,5.1848]
[1738907707829,10.35157997,192.9,192.84,5.1856]
[1738907708047,10.35157997,192.87,192.82,5.1861]
[1738907708241,10.35157997,192.86,192.8,120.1864]
[1738907708417,10.35157997,192.85,192.8,120.1864]
[1738907708618,10.35157997,192.85,192.8,5.1864]
[1738907709216,10.35157997,192.85,192.79,5.1869]
[1738907709412,10.35157997,192.86,192.79,15.53847997]
[1738907709740,10.35157997,192.88,192.82,10.35157997]
[1738907710111,10.35157997,192.89,192.82,10.35157997]
[1738907710411,30.35157997,192.88,192.82,10.35157997]
[1738907710830,6.6625,192.92,192.85,10.35157997]
[1738907710831,17.01407997,192.92,192.85,10.35157997]
[1738907711235,17.01407997,192.92,192.84,10.35157997]
[1738907711236,10.35157997,192.91,192.84,10.35157997]
[1738907712219,10.35157997,192.91,192.85,5.1853]
[1738907712729,17.01407997,192.92,192.85,15.53687997]
[1738907714036,0.0001,192.92,192.86,10.35157997]
[1738907715739,10.35167997,192.92,192.85,5.1853]
[1738907716110,10.35167997,192.92,192.83,115.0]
[1738907716111,10.35157997,192.9,192.83,125.35157997]
[1738907716318,10.35157997,192.87,192.83,5.1856]
[1738907716524,10.35157997,192.85,192.77,15.53907997]
[1738907717136,10.35157997,192.84,192.77,15.53907997]
[1738907717343,10.35157997,192.83,192.77,5.1875]
[1738907718119,10.35157997,192.82,192.77,5.1875]
[1738907719235,30.38157997,192.83,192.76,15.60227997]
[1738907719620,20.03,192.83,192.76,15.60227997]
[1738907719819,20.03,192.83,192.77,10.35157997]
[1738907720020,0.03,192.83,192.78,10.35157997]
[1738907721333,0.03,192.83,192.79,5.1869]
[1738907722042,30.35157997,192.82,192.77,11.38047053]
[1738907723126,30.35157997,192.82,192.76,5.2507]
[1738907723645,20.0,192.82,192.76,5.2507]
[1738907724224,10.35157997,192.79,192.76,0.063]
[1738907724731,10.35157997,192.8,192.76,0.063]
[1738907728050,10.35157997,192.78,192.76,0.063]
[1738907728751,10.35157997,192.79,192.76,0.063]
[1738907730434,10.35157997,192.8,192.76,0.063]
[1738907734136,10.35157997,192.81,192.76,0.063]
[1738907736462,10.35157997,192.8,192.76,0.063]
[1738907738656,0.03,192.83,192.8,0.25098]
[1738907738863,0.03,192.83,192.82,10.35157997]
[1738907739062,0.03,192.83,192.82,24.0144085]
[1738907740145,0.03,192.83,192.82,29.2005085]
[1738907740345,0.0001,192.83,192.82,144.2005085]
[1738907742445,0.0001,192.83,192.82,120.1861]
[1738907745779,0.0001,192.83,192.8,5.1867]
[1738907751669,0.0001,192.83,192.8,15.53827997]
[1738907752477,0.0001,192.83,192.8,5.1867]
[1738907754066,0.0001,192.83,192.8,5.2497]
[1738907754656,0.0001,192.83,192.8,0.063]
[1738907759875,10.35157997,192.82,192.8,0.063]
[1738907760981,10.35167997,192.83,192.8,0.063]
[1738907764789,10.35157997,192.82,192.8,0.063]
[1738907766189,10.35167997,192.83,192.8,0.063]
[1738907766800,20.0001,192.83,192.8,0.063]
[1738907768208,0.0001,192.83,192.8,0.063]
[1738907768368,0.0001,192.83,192.82,13.41184853]
[1738907768573,0.0001,192.83,192.82,24.54120181]
[1738907768785,0.0001,192.83,192.82,139.79218181]
[1738907768986,0.0001,192.83,192.82,139.0144085]
[1738907769210,0.0001,192.83,192.82,139.2653885]
[1738907770404,0.0001,192.83,192.82,150.64782204]
[1738907770704,0.0001,192.83,192.82,239.32052204]
[1738907771482,0.0001,192.92,192.85,0.50196]
[1738907771690,0.0001,192.92,192.88,10.35157997]
[1738907772292,0.0001,192.92,192.89,18.59614853]
[1738907772490,0.0001,192.92,192.89,133.59614853]
[1738907773408,0.0001,192.92,192.89,143.9477285]
[1738907774386,0.0001,192.94,192.92,0.50196]
[1738907774702,0.03,193.01,192.95,0.25098]
[1738907775001,0.03,193.01,192.97,10.35157997]
[1738907775391,0.03,193.01,192.97,13.41184853]
[1738907775708,0.03,193.01,192.95,115.25098]
[1738907775894,10.35157997,193.0,192.95,115.0]
[1738907776501,10.38157997,193.01,192.95,115.0]
[1738907776712,10.38157997,193.01,192.95,120.1824]
[1738907777793,0.03,193.01,192.95,120.1824]
[1738907778602,0.03,193.01,192.95,5.1824]
[1738907780011,0.03,193.01,192.96,13.66282853]
[1738907780211,0.03,193.01,192.97,10.35157997]
[1738907780514,0.03,193.01,192.98,10.35157997]
[1738907780692,0.03,193.01,192.97,11.12872201]
[1738907781789,0.03,193.01,192.99,13.41184853]
[1738907782115,0.03,193.01,192.99,128.41184853]
[1738907782289,0.03,193.01,192.99,115.0]
[1738907783618,0.03,193.01,193.0,5.1813]
[1738907785213,0.03,193.01,193.0,19.37022135]
[1738907785601,0.03,193.01,193.0,18.59314853]
[1738907787313,0.03,193.01,193.0,19.37013001]
[1738907787509,0.03,193.01,193.0,134.37013001]
[1738907787723,0.03,193.01,193.0,133.59314853]
[1738907790220,0.03,193.01,193.0,144.1957085]
[1738907794705,0.03,193.01,193.0,133.84412853]
[1738907796020,0.03,193.01,193.0,144.1957085]
[1738907799422,0.03,193.01,193.0,224.9096885]
[1738907800232,0.03,193.03,193.01,13.91380853]
[1738907800523,0.03,193.03,193.02,24.79119187]
[1738907801327,0.03,193.03,193.02,29.97199187]
[1738907801902,0.03,193.06,193.03,13.91380853]
[1738907802103,0.03,193.06,193.05,23.7634285]
[1738907802810,0.03,193.06,193.05,13.41184853]
[1738907803332,0.03,193.06,193.05,18.59184853]
[1738907803541,0.03,193.06,193.04,0.77675363]
[1738907803838,0.03,193.06,193.03,5.1802]
[1738907804629,10.38157997,193.06,193.02,115.0]
[1738907805006,0.03,193.06,193.02,120.1807]
[1738907805831,10.38157997,193.06,193.02,120.1807]
[1738907807140,0.03,193.06,193.02,120.1807]
[1738907808529,0.03,193.06,193.02,5.1807]
[1738907809240,0.03,193.06,193.01,13.41184853]
[1738907809441,0.03,193.06,193.01,19.36980352]
[1738907811213,0.03,193.06,193.01,18.59284853]
[1738907811933,0.03,193.06,193.01,19.36982251]
[1738907813036,0.03,193.06,193.01,19.43282251]
[1738907814136,0.03,193.06,193.01,29.78440248]
[1738907814336,0.03,193.06,193.01,144.78440248]
[1738907814515,0.03,193.06,193.01,144.0074285]
[1738907816143,0.03,193.06,193.02,11.37952161]
[1738907816328,0.03,193.06,193.04,10.35157997]
[1738907816527,0.03,193.06,193.04,11.12839244]
[1738907817237,0.03,193.06,193.05,29.1944085]
[1738907817443,0.03,193.06,193.05,144.1944085]
[1738907818040,0.0001,193.06,193.05,144.4453885]
[1738907818642,0.0001,193.06,193.05,145.4453885]
[1738907819248,0.0001,193.06,193.05,144.4453885]
[1738907820231,0.0001,193.06,193.05,144.1944085]
[1738907820435,0.0001,193.06,193.05,133.84282853]
[1738907820638,0.0001,193.06,193.05,133.59184853]
[1738907820833,0.0001,193.06,193.05,115.0]
[1738907821027,0.0001,193.06,193.05,120.18]
[1738907822256,0.03,193.08,193.05,120.18]
[1738907826255,0.03,193.08,193.05,5.18]
[1738907828442,0.03,193.08,193.05,5.95681749]
[1738907828650,0.03,193.08,193.05,5.18]
[1738907828950,0.03,193.08,193.06,14.43966532]
[1738907829345,0.03,193.08,193.06,13.41184853]
[1738907830034,0.03,193.08,193.06,18.59134853]
[1738907830535,0.03,193.08,193.06,5.1795]
[1738907833459,0.03,193.08,193.01,195.526]
[1738907833655,10.35157997,193.06,193.02,5.1805]
[1738907833838,10.38157997,193.08,193.02,5.1805]
[1738907835456,0.03,193.08,193.03,13.41184853]
[1738907835662,0.03,193.08,193.04,0.77685499]
[1738907836745,0.03,193.08,193.05,5.18]
[1738907849579,0.03,193.08,193.05,5.243]
[1738907851260,10.38157997,193.08,193.05,0.063]
[1738907854769,10.35157997,193.07,193.05,0.063]
[1738907869201,0.03,193.08,193.05,0.063]
[1738907875496,0.03,193.08,193.05,115.063]
[1738907875794,0.03,193.08,193.05,125.41457997]
[1738907877802,0.03,193.08,193.05,115.063]
[1738907878013,10.35157997,193.07,193.05,0.063]
[1738907878306,10.35157997,193.06,193.05,0.063]
[1738907878505,10.35157997,193.07,193.05,0.063]
[1738907880603,10.35157997,193.06,193.05,0.063]
[1738907882601,15.91176537,193.06,193.05,0.063]
[1738907883713,16.03725537,193.06,193.05,0.063]
[1738907884422,20.0,193.03,193.02,0.063]
[1738907884602,30.35157997,193.03,193.02,0.063]
[1738907885902,35.53207997,193.03,193.02,0.063]
[1738907887603,35.65756997,193.03,193.02,0.063]
[1738907887809,41.98146997,193.03,193.02,0.063]
[1738907887983,42.98146997,193.03,193.02,0.063]
[1738907888301,21.66189,192.97,192.96,0.063]
[1738907888610,34.39395537,192.97,192.95,0.063]
[1738907888814,35.53397997,192.96,192.95,0.063]
[1738907889587,1.12549,192.95,192.87,40.19476001]
[1738907889784,10.35157997,192.88,192.87,40.19476001]
[1738907890921,10.35157997,192.89,192.87,40.19476001]
[1738907891629,10.35157997,192.89,192.85,0.063]
[1738907892415,10.35157997,192.88,192.85,0.063]
[1738907895629,0.12549,192.93,192.85,0.063]
[1738907895630,10.35157997,192.87,192.85,0.063]
[1738907895830,10.35157997,192.86,192.85,0.063]
[1738907897736,15.53667997,192.86,192.85,0.063]
[1738907898433,10.35157997,192.86,192.85,0.063]
[1738907900226,20.0,192.86,192.85,0.063]
[1738907900528,30.35157997,192.86,192.85,0.063]
[1738907904513,5.1846,192.88,192.85,0.063]
[1738907904514,10.35157997,192.88,192.85,0.063]
[1738907905635,20.0,192.86,192.85,0.063]
[1738907905816,30.35157997,192.86,192.85,0.063]
[1738907909841,20.0,192.86,192.85,0.063]
[1738907912256,10.35157997,192.9,192.85,0.063]
[1738907912460,10.35157997,192.91,192.85,0.063]
[1738907913438,10.35157997,192.91,192.85,5.2483]
[1738907914543,10.35157997,192.92,192.85,15.59987997]
[1738907914745,10.35157997,192.92,192.85,130.59987997]
[1738907916944,10.35157997,192.91,192.85,120.2483]
[1738907919745,10.35157997,192.92,192.85,130.59987997]
[1738907921447,30.35157997,192.91,192.85,120.2483]
[1738907923148,20.0,192.91,192.85,130.59987997]
[1738907926333,10.35157997,192.93,192.86,24.0144085]
[1738907926838,10.35157997,192.94,192.87,10.35157997]
[1738907927729,10.35157997,192.93,192.88,5.1845]
[1738907927947,30.35157997,192.93,192.88,5.1845]
[1738907929262,30.35157997,192.93,192.86,24.0144085]
[1738907929558,30.35157997,192.93,192.87,5.1848]
[1738907929749,20.0,192.93,192.87,15.53637997]
[1738907930155,20.0,192.93,192.87,210.99937997]
[1738907932357,30.35157997,192.93,192.87,210.99937997]
[1738907932556,30.35157997,192.93,192.88,0.063]
[1738907933347,10.38157997,192.95,192.88,27.95669435]
[1738907933554,0.03,192.95,192.89,10.35157997]
[1738907933730,10.38157997,192.95,192.89,115.0]
[1738907934640,10.38157997,192.95,192.9,5.184]
[1738907934837,0.03,192.95,192.9,5.184]
[1738907935157,0.03,192.95,192.92,10.35157997]
[1738907935740,0.03,192.95,192.93,10.35157997]
[1738907936432,0.03,192.95,192.94,10.35157997]
[1738907936953,0.03,192.95,192.94,15.53447997]
[1738907940341,0.03,192.95,192.92,10.35157997]
[1738907940545,0.03,192.95,192.91,195.463]
[1738907940748,0.03,192.95,192.91,200.6467]
[1738907944442,0.03,192.95,192.91,211.06127997]
[1738907944855,0.03,192.95,192.91,195.526]
[1738907948061,0.03,192.95,192.91,80.526]
[1738907948863,0.03,192.95,192.91,85.7097]
[1738907949661,0.03,192.95,192.91,96.06127997]
[1738907949865,0.03,192.95,192.93,10.35157997]
[1738907951065,0.03,192.95,192.94,15.53447997]
[1738907951867,0.03,192.95,192.94,19.40685034]
[1738907952966,0.03,192.95,192.94,33.06967887]
[1738907953162,0.03,192.95,192.94,33.84691411]
[1738907954045,0.03,192.95,192.94,229.30991411]
[1738907954245,0.03,192.95,192.94,228.53267887]
[1738907960258,0.03,192.95,192.94,228.78365887]
[1738907960466,0.03,193.06,192.95,13.66282853]
[1738907960651,0.03,193.06,192.96,0.77703952]
[1738907960844,0.03,193.06,193.0,10.35157997]
[1738907961566,0.03,193.06,193.0,5.1812]
[1738907961567,10.38157997,193.06,193.0,5.1812]
[1738907963149,18.13,193.05,192.99,10.35157997]
[1738907963351,10.35157997,193.02,192.96,80.463]
[1738907963553,10.35157997,192.97,192.91,195.526]
[1738907963971,10.35157997,192.97,192.91,200.7097]
[1738907968679,10.35157997,192.98,192.91,211.06127997]
[1738907968860,20.0,192.99,192.93,10.35157997]
[1738907969875,20.0,192.99,192.94,5.1829]
[1738907970877,20.0,192.99,192.92,24.0144085]
[1738907971171,20.0,192.99,192.93,5.1832]
[1738907971372,20.0,192.99,192.93,15.53477997]
[1738907972275,1.5055,193.01,192.95,5.1826]
[1738907972463,10.35157997,193.03,192.96,10.35157997]
[1738907972858,20.0,193.0,192.96,10.35157997]
[1738907973978,20.0,193.01,192.97,15.53367997]
[1738907974962,1.5361,193.06,192.99,10.35157997]
[1738907975160,20.0,193.04,193.0,10.35157997]
[1738907975373,1.5361,193.06,193.01,10.35157997]
[1738907975669,20.0,193.05,193.01,10.35157997]
[1738907976057,20.0,193.05,193.01,15.53237997]
[1738907977863,1.5361,193.06,193.01,15.53237997]
[1738907978486,0.03,193.06,193.01,15.53237997]
[1738907978667,20.03,193.06,193.03,10.35157997]
[1738907978860,0.03,193.06,193.03,10.35157997]
[1738907979675,0.03,193.05,193.03,15.53197997]
[1738907980273,0.03,193.05,193.04,10.35157997]
[1738907981079,0.03,193.05,193.03,15.53197997]
[1738907981296,0.03,193.05,193.01,130.53247997]
[1738907981593,0.03,193.05,193.01,120.1809]
[1738907982693,0.03,193.05,193.03,10.35157997]
[1738907983996,0.03,193.05,193.03,15.53177997]
[1738907985075,0.03,193.05,193.04,10.35157997]
[1738907986006,0.03,193.05,193.03,15.53177997]
[1738907986164,0.03,193.05,193.03,5.1802]
[1738907987089,0.03,193.05,193.03,10.35157997]
[1738907988488,0.03,193.05,193.03,15.53197997]
[1738907997530,0.03,193.05,193.04,10.35157997]
[1738907998912,0.03,193.05,193.04,15.53177997]
[1738908000241,0.03,193.05,193.04,210.99477997]
[1738908000537,0.03,193.06,193.04,224.9085885]
[1738908000708,0.03,193.08,193.05,24.79110493]
[1738908000909,0.03,193.08,193.07,10.35157997]
[1738908001113,0.03,193.08,193.07,205.81457997]
[1738908001323,0.0001,193.08,193.07,219.7283885]
[1738908002636,0.0001,193.08,193.07,224.9077885]
[1738908003219,0.0001,193.08,193.07,224.6568085]
[1738908003418,0.0001,193.08,193.07,210.99397997]
[1738908003613,0.0001,193.08,193.07,228.521213]
[1738908005245,0.0001,193.08,193.07,224.9077885]
[1738908007337,0.0001,193.08,193.07,228.76663731]
[1738908007716,0.0001,193.08,193.07,229.76663731]
[1738908007928,0.03,193.13,193.11,0.25098]
[1738908008130,0.03,193.13,193.12,24.79082344]
[1738908008943,0.03,193.14,193.13,13.91380853]
[1738908009239,5.1746,193.26,193.13,13.91380853]
[1738908009240,1.6659,193.3,193.19,0.25098]
[1738908009542,1.6659,193.3,193.21,13.66282853]
[1738908009739,1.6659,193.3,193.24,29.1893085]
[1738908009927,1.6659,193.3,193.24,144.1893085]
[1738908010718,10.38157997,193.28,193.24,115.0]
[1738908010938,10.38157997,193.25,193.19,115.0]
[1738908011323,10.35157997,193.22,193.16,5.1769]
[1738908011528,10.35157997,193.22,193.15,125.35157997]
[1738908011731,10.35157997,193.22,193.15,130.52877997]
[1738908012423,10.35157997,193.23,193.16,10.35157997]
[1738908012830,22.18467997,193.24,193.17,10.35157997]
[1738908013822,10.35157997,193.23,193.16,15.52847997]
[1738908014740,16.09741475,193.23,193.16,21.27431475]
[1738908015740,27.93051475,193.24,193.16,21.27431475]
[1738908016044,16.09741475,193.17,193.11,115.0]
[1738908016227,16.09741475,193.16,193.09,131.09741475]
[1738908016432,16.09741475,193.15,193.09,120.1789]